[Event "Tournoi fermé pour norme de MI de Créon 2025"]
[Site "CREON, France"]
[Date "2025.07.31"]
[Round "6.3"]
[White "Jerez Perez, Alfonso"]
[Black "Kocharin, Timur"]
[Result "1/2-1/2"]
[TimeControl "1h30/40 - 30' + [30'']"]
[WhiteElo "2328"]
[BlackElo "2302"]

1. e4 {[%clk 01:30:58]} {[%emt 00:05:27]} c5 {[%clk 01:28:25]} {[%emt
00:02:35]} 2. c3 {[%clk 01:31:20]} {[%emt 00:00:08]} Nf6 {[%clk 01:28:41]}
{[%emt 00:00:12]} 3. e5 {[%clk 01:31:39]} {[%emt 00:00:13]} Nd5 {[%clk
01:29:07]} {[%emt 00:00:04]} 4. Nf3 {[%clk 01:32:03]} {[%emt 00:00:06]} Nc6
{[%clk 01:29:21]} {[%emt 00:00:16]} 5. Bc4 {[%clk 01:31:49]} {[%emt 00:00:45]}
Nb6 {[%clk 01:29:46]} {[%emt 00:00:06]} 6. Bb3 {[%clk 01:32:14]} {[%emt
00:00:04]} d5 {[%clk 01:28:48]} {[%emt 00:01:28]} 7. exd6 {[%clk 01:32:36]}
{[%emt 00:00:08]} Qxd6 {[%clk 01:29:11]} {[%emt 00:00:06]} 8. O-O {[%clk
01:32:51]} {[%emt 00:00:15]} e5 {[%clk 01:29:32]} {[%emt 00:00:08]} 9. d4
{[%clk 01:30:22]} {[%emt 00:03:00]} exd4 {[%clk 01:28:55]} {[%emt 00:01:07]} 10.
cxd4 {[%clk 01:30:33]} {[%emt 00:00:19]} c4 {[%clk 01:28:58]} {[%emt 00:00:27]}
11. Bc2 {[%clk 01:29:21]} {[%emt 00:01:42]} Be7 {[%clk 01:29:21]} {[%emt
00:00:07]} 12. Nc3 {[%clk 01:24:59]} {[%emt 00:04:52]} Bg4 {[%clk 01:24:53]}
{[%emt 00:04:57]} 13. Be3 {[%clk 01:24:13]} {[%emt 00:01:17]} O-O {[%clk
01:22:48]} {[%emt 00:02:35]} 14. h3 {[%clk 01:23:51]} {[%emt 00:00:51]} Bh5
{[%clk 01:22:15]} {[%emt 00:01:03]} 15. Ne4 {[%clk 01:18:44]} {[%emt 00:05:37]}
Qd8 {[%clk 01:13:38]} {[%emt 00:09:07]} 16. Ng3 {[%clk 01:15:17]} {[%emt
00:03:58]} Bg6 {[%clk 01:13:29]} {[%emt 00:00:38]} 17. Bxg6 {[%clk 01:13:07]}
{[%emt 00:02:41]} hxg6 {[%clk 01:13:34]} {[%emt 00:00:24]} 18. b3 {[%clk
01:11:17]} {[%emt 00:02:21]} Qd5 {[%clk 01:12:34]} {[%emt 00:01:30]} 19. Ne2
{[%clk 01:09:17]} {[%emt 00:02:30]} cxb3 {[%clk 01:08:56]} {[%emt 00:04:08]} 20.
Nf4 {[%clk 01:03:06]} {[%emt 00:06:40]} Qd6 {[%clk 01:05:52]} {[%emt 00:03:34]}
21. Qxb3 {[%clk 01:01:43]} {[%emt 00:01:53]} Nb4 {[%clk 01:01:42]} {[%emt
00:04:40]} 22. Ne5 {[%clk 00:58:56]} {[%emt 00:03:17]} N4d5 {[%clk 01:01:04]}
{[%emt 00:01:09]} 23. Nfd3 {[%clk 00:58:37]} {[%emt 00:00:49]} Rac8 {[%clk
00:58:18]} {[%emt 00:03:16]} 24. Nc5 {[%clk 00:51:31]} {[%emt 00:07:36]} Rc7
{[%clk 00:51:36]} {[%emt 00:07:13]} 25. Rac1 {[%clk 00:49:25]} {[%emt
00:02:35]} Nxe3 {[%clk 00:49:21]} {[%emt 00:02:44]} 26. fxe3 {[%clk 00:48:04]}
{[%emt 00:01:52]} Qd5 {[%clk 00:49:45]} {[%emt 00:00:06]} 27. Ncd3 {[%clk
00:46:52]} {[%emt 00:01:41]} Rxc1 {[%clk 00:46:25]} {[%emt 00:03:50]} 28. Rxc1
{[%clk 00:47:07]} {[%emt 00:00:16]} Bg5 {[%clk 00:45:24]} {[%emt 00:01:30]} 29.
Re1 {[%clk 00:42:49]} {[%emt 00:04:48]} Rc8 {[%clk 00:44:38]} {[%emt 00:01:16]}
30. Nf3 {[%clk 00:13:17]} {[%emt 00:30:02]} Be7 {[%clk 00:43:26]} {[%emt
00:01:42]} 31. Rc1 {[%clk 00:12:41]} {[%emt 00:01:07]} Qxb3 {[%clk 00:39:07]}
{[%emt 00:04:49]} 32. Rxc8+ {[%clk 00:12:42]} {[%emt 00:00:29]} Nxc8 {[%clk
00:39:35]} {[%emt 00:00:01]} 33. axb3 {[%clk 00:13:07]} {[%emt 00:00:05]} Nd6
{[%clk 00:39:44]} {[%emt 00:00:21]} 34. Kf2 {[%clk 00:13:02]} {[%emt 00:00:35]}
f6 {[%clk 00:38:27]} {[%emt 00:01:47]} 35. Ke2 {[%clk 00:13:08]} {[%emt
00:00:24]} Kf7 {[%clk 00:38:16]} {[%emt 00:00:42]} 36. Nf4 {[%clk 00:10:59]}
{[%emt 00:02:39]} a5 {[%clk 00:37:10]} {[%emt 00:01:36]} 37. Kd3 {[%clk
00:10:43]} {[%emt 00:00:46]} b5 {[%clk 00:36:56]} {[%emt 00:00:44]} 38. Nd5
{[%clk 00:10:43]} {[%emt 00:00:29]} a4 {[%clk 00:36:57]} {[%emt 00:00:30]} 39.
bxa4 {[%clk 00:10:53]} {[%emt 00:00:20]} bxa4 {[%clk 00:37:21]} {[%emt
00:00:06]} 40. Nc3 {[%clk 00:10:42]} {[%emt 00:00:40]} a3 {[%clk 00:37:47]}
{[%emt 00:00:05]} 41. Nd2 {[%clk 00:09:55]} {[%emt 00:01:16]} f5 {[%clk
00:35:29]} {[%emt 00:02:47]} 42. Kc2 {[%clk 00:08:46]} {[%emt 00:01:41]} Bg5
{[%clk 00:33:46]} {[%emt 00:02:13]} 43. Kd3 {[%clk 00:08:32]} {[%emt 00:00:43]}
Ke6 {[%clk 00:32:28]} {[%emt 00:01:48]} 44. Nb3 {[%clk 00:03:01]} {[%emt
00:06:02]} Nb7 {[%clk 00:30:43]} {[%emt 00:02:15]} 45. Nb5 {[%clk 00:28:42]}
{[%emt 00:04:48]} Be7 {[%clk 00:59:53]} {[%emt 00:01:20]} 46. Nc3 {[%clk
00:27:47]} {[%emt 00:01:26]} Kd7 {[%clk 00:57:00]} {[%emt 00:03:23]} 47. Kc4
{[%clk 00:25:15]} {[%emt 00:03:01]} Kc6 {[%clk 00:55:27]} {[%emt 00:02:04]} 48.
Na2 {[%clk 00:19:55]} {[%emt 00:05:50]} Nd6+ {[%clk 00:53:40]} {[%emt
00:02:16]} 49. Kb4 {[%clk 00:18:07]} {[%emt 00:02:18]} Ne4+ {[%clk 00:45:50]}
{[%emt 00:08:20]} 50. Kc4 {[%clk 00:17:42]} {[%emt 00:00:56]} Bg5 {[%clk
00:42:43]} {[%emt 00:03:37]} 51. Nb4+ {[%clk 00:17:18]} {[%emt 00:00:54]} Kd6
{[%clk 00:42:41]} {[%emt 00:00:31]} 52. Kd3 {[%clk 00:11:52]} {[%emt 00:05:56]}
Be7 {[%clk 00:42:06]} {[%emt 00:01:04]} 53. Kc4 {[%clk 00:12:13]} {[%emt
00:00:10]} Bg5 {[%clk 00:40:27]} {[%emt 00:02:08]} 54. Kd3 {[%clk 00:12:39]}
{[%emt 00:00:04]} Ke6 {[%clk 00:40:34]} {[%emt 00:00:24]} 55. Na2 {[%clk
00:12:32]} {[%emt 00:00:38]} Bh4 {[%clk 00:40:16]} {[%emt 00:00:48]} 56. Nb4
{[%clk 00:11:38]} {[%emt 00:01:24]} Be7 {[%clk 00:40:39]} {[%emt 00:00:06]} 57.
Na2 {[%clk 00:09:37]} {[%emt 00:02:31]} Kd5 {[%clk 00:40:59]} {[%emt 00:00:09]}
58. Na1 {[%clk 00:09:06]} {[%emt 00:01:01]} Kc6 {[%clk 00:38:55]} {[%emt
00:02:34]} 59. Kc4 {[%clk 00:08:43]} {[%emt 00:00:52]} Nd6+ {[%clk 00:38:52]}
{[%emt 00:00:33]} 60. Kb4 {[%clk 00:08:18]} {[%emt 00:00:56]} Nb7+ {[%clk
00:38:36]} {[%emt 00:00:46]} 61. Ka4 {[%clk 00:07:32]} {[%emt 00:01:16]} Kd5
{[%clk 00:38:40]} {[%emt 00:00:25]} 62. Kb5 {[%clk 00:06:33]} {[%emt 00:01:29]}
Nd6+ {[%clk 00:38:12]} {[%emt 00:00:58]} 63. Ka4 {[%clk 00:06:22]} {[%emt
00:00:42]} Ke4 {[%clk 00:38:21]} {[%emt 00:00:20]} 64. Nc3 {[%clk 00:06:41]}
{[%emt 00:00:12]} Kd3 {[%clk 00:38:41]} {[%emt 00:00:09]} 65. Nd5 {[%clk
00:07:04]} {[%emt 00:00:07]} Bf8 {[%clk 00:38:51]} {[%emt 00:00:20]} 66. Nf4+
{[%clk 00:06:14]} {[%emt 00:01:20]} Kc3 {[%clk 00:38:52]} {[%emt 00:00:29]}
1/2-1/2

[ePGN "0.1;DGT LiveChess/2.2.7"]

[Event "Tournoi fermé pour norme de MI de Créon 2025"]
[Site "CREON, France"]
[Date "2025.09.01"]
[Round "7.3"]
[White "Villegas, Pierre"]
[Black "Jerez Perez, Alfonso"]
[Result "1/2-1/2"]
[TimeControl "1h30/40 - 30' + [30'']"]
[WhiteElo "2291"]
[BlackElo "2328"]

1. d4 {[%clk 01:30:56]} {[%emt 00:00:03]} d5 {[%clk 01:30:20]} {[%emt
00:00:41]} 2. Nf3 {[%clk 01:30:59]} {[%emt 00:00:27]} Nf6 {[%clk 01:30:40]}
{[%emt 00:00:09]} 3. c3 {[%clk 01:31:11]} {[%emt 00:00:19]} c6 {[%clk
01:28:41]} {[%emt 00:02:28]} 4. Qc2 {[%clk 01:29:30]} {[%emt 00:02:11]} g6
{[%clk 01:28:31]} {[%emt 00:00:40]} 5. Bf4 {[%clk 01:29:30]} {[%emt 00:00:30]}
Bf5 {[%clk 01:28:15]} {[%emt 00:00:45]} 6. Qb3 {[%clk 01:29:51]} {[%emt
00:00:09]} Qb6 {[%clk 01:28:08]} {[%emt 00:00:37]} 7. e3 {[%clk 01:29:25]}
{[%emt 00:00:56]} Bg7 {[%clk 01:27:46]} {[%emt 00:00:51]} 8. h3 {[%clk
01:28:04]} {[%emt 00:01:51]} O-O {[%clk 01:26:37]} {[%emt 00:01:39]} 9. Nbd2
{[%clk 01:28:09]} {[%emt 00:00:25]} Ne4 {[%clk 01:24:51]} {[%emt 00:02:16]} 10.
g4 {[%clk 01:25:38]} {[%emt 00:03:01]} Nxd2 {[%clk 01:23:23]} {[%emt 00:01:58]}
11. Nxd2 {[%clk 01:25:54]} {[%emt 00:00:13]} Bc8 {[%clk 01:22:40]} {[%emt
00:01:13]} 12. Bg2 {[%clk 01:04:09]} {[%emt 00:22:15]} Nd7 {[%clk 01:20:22]}
{[%emt 00:02:47]} 13. c4 {[%clk 01:02:20]} {[%emt 00:02:19]} e5 {[%clk
01:05:24]} {[%emt 00:15:28]} 14. dxe5 {[%clk 01:01:17]} {[%emt 00:01:33]} Nxe5
{[%clk 01:05:41]} {[%emt 00:00:13]} 15. Bxe5 {[%clk 00:58:55]} {[%emt
00:02:53]} Bxe5 {[%clk 01:05:46]} {[%emt 00:00:24]} 16. cxd5 {[%clk 00:59:14]}
{[%emt 00:00:12]} cxd5 {[%clk 01:04:37]} {[%emt 00:01:39]} 17. Bxd5 {[%clk
00:57:48]} {[%emt 00:01:56]} Bxb2 {[%clk 01:04:09]} {[%emt 00:00:57]} 18. Rb1
{[%clk 00:57:59]} {[%emt 00:00:20]} Qxb3 {[%clk 01:04:23]} {[%emt 00:00:16]} 19.
Nxb3 {[%clk 00:58:06]} {[%emt 00:00:23]} Bc3+ {[%clk 01:04:08]} {[%emt
00:00:44]} 20. Ke2 {[%clk 00:57:57]} {[%emt 00:00:40]} Rb8 {[%clk 01:00:41]}
{[%emt 00:03:57]} 21. Rbc1 {[%clk 00:54:23]} {[%emt 00:04:05]} Bf6 {[%clk
00:58:19]} {[%emt 00:02:51]} 22. Rhd1 {[%clk 00:53:07]} {[%emt 00:01:47]} Bd8
{[%clk 00:53:39]} {[%emt 00:05:10]} 23. f4 {[%clk 00:48:20]} {[%emt 00:05:17]}
Kg7 {[%clk 00:46:39]} {[%emt 00:07:29]} 24. Kf3 {[%clk 00:43:55]} {[%emt
00:04:55]} h5 {[%clk 00:45:32]} {[%emt 00:01:36]} 25. e4 {[%clk 00:17:42]}
{[%emt 00:26:43]} hxg4+ {[%clk 00:45:31]} {[%emt 00:00:31]} 26. hxg4 {[%clk
00:18:07]} {[%emt 00:00:04]} Rh8 {[%clk 00:45:49]} {[%emt 00:00:12]} 27. f5
{[%clk 00:16:59]} {[%emt 00:01:39]} Bb6 {[%clk 00:39:59]} {[%emt 00:06:19]} 28.
Kf4 {[%clk 00:13:27]} {[%emt 00:04:02]} g5+ {[%clk 00:39:47]} {[%emt 00:00:42]}
29. Kf3 {[%clk 00:11:58]} {[%emt 00:02:00]} Rh3+ {[%clk 00:39:40]} {[%emt
00:00:36]} 30. Kg2 {[%clk 00:09:04]} {[%emt 00:03:24]} Rh4 {[%clk 00:39:30]}
{[%emt 00:00:39]} 31. Kf3 {[%clk 00:04:04]} {[%emt 00:05:31]} Rh3+ {[%clk
00:38:25]} {[%emt 00:01:34]} 32. Kg2 {[%clk 00:04:32]} {[%emt 00:00:02]} Rh4
{[%clk 00:38:49]} {[%emt 00:00:06]} 33. Kf3 {[%clk 00:03:57]} {[%emt 00:01:06]}
Rh3+ {[%clk 00:38:56]} {[%emt 00:00:23]} 1/2-1/2

[Event "Tournoi fermé pour norme de MI de Créon 2025"]
[Site "CREON, France"]
[Date "2025.09.01"]
[Round "7.1"]
[White "Lacan-Rus, David"]
[Black "Malka, Samuel"]
[Result "0-1"]
[TimeControl "1h30/40 - 30' + [30'']"]
[WhiteElo "2369"]
[BlackElo "2268"]

1. c4 {[%clk 01:29:57]} {[%emt 00:01:02]} g6 {[%clk 01:28:13]} {[%emt
00:02:47]} 2. Nc3 {[%clk 01:30:15]} {[%emt 00:00:12]} Bg7 {[%clk 01:27:50]}
{[%emt 00:00:52]} 3. e4 {[%clk 01:30:25]} {[%emt 00:00:21]} d6 {[%clk
01:26:38]} {[%emt 00:01:43]} 4. g3 {[%clk 01:30:04]} {[%emt 00:00:50]} c5
{[%clk 01:21:08]} {[%emt 00:06:01]} 5. Bg2 {[%clk 01:29:42]} {[%emt 00:00:51]}
Nc6 {[%clk 01:20:41]} {[%emt 00:00:59]} 6. Nge2 {[%clk 01:29:14]} {[%emt
00:00:58]} a6 {[%clk 01:18:49]} {[%emt 00:02:23]} 7. Rb1 {[%clk 01:27:27]}
{[%emt 00:02:16]} Rb8 {[%clk 01:17:47]} {[%emt 00:01:32]} 8. a4 {[%clk
01:27:38]} {[%emt 00:00:19]} Nf6 {[%clk 01:10:02]} {[%emt 00:08:15]} 9. O-O
{[%clk 01:27:29]} {[%emt 00:00:38]} O-O {[%clk 01:03:51]} {[%emt 00:06:41]} 10.
d3 {[%clk 01:27:52]} {[%emt 00:00:08]} Ne8 {[%clk 01:02:47]} {[%emt 00:01:33]}
11. Be3 {[%clk 01:26:09]} {[%emt 00:02:13]} Nc7 {[%clk 00:51:42]} {[%emt
00:11:36]} 12. d4 {[%clk 01:26:26]} {[%emt 00:00:12]} cxd4 {[%clk 00:43:45]}
{[%emt 00:08:28]} 13. Nxd4 {[%clk 01:26:50]} {[%emt 00:00:06]} Nxd4 {[%clk
00:42:58]} {[%emt 00:01:17]} 14. Bxd4 {[%clk 01:27:10]} {[%emt 00:00:10]} Bxd4
{[%clk 00:42:44]} {[%emt 00:00:44]} 15. Qxd4 {[%clk 01:27:38]} {[%emt
00:00:01]} b5 {[%clk 00:42:26]} {[%emt 00:00:49]} 16. b4 {[%clk 01:23:53]}
{[%emt 00:04:14]} e5 {[%clk 00:39:29]} {[%emt 00:03:26]} 17. Qd3 {[%clk
01:23:18]} {[%emt 00:01:05]} bxc4 {[%clk 00:39:22]} {[%emt 00:00:37]} 18. Qxc4
{[%clk 01:23:41]} {[%emt 00:00:08]} Ne6 {[%clk 00:39:20]} {[%emt 00:00:32]} 19.
Kh1 {[%clk 01:11:47]} {[%emt 00:12:23]} Bb7 {[%clk 00:34:34]} {[%emt 00:05:16]}
20. Qd3 {[%clk 01:05:33]} {[%emt 00:06:44]} Qb6 {[%clk 00:31:38]} {[%emt
00:03:27]} 21. Ne2 {[%clk 00:50:31]} {[%emt 00:15:32]} Bc6 {[%clk 00:27:28]}
{[%emt 00:04:38]} 22. Qa3 {[%clk 00:37:17]} {[%emt 00:13:45]} Qb7 {[%clk
00:24:38]} {[%emt 00:03:20]} 23. Nc3 {[%clk 00:33:39]} {[%emt 00:04:08]} Nd4
{[%clk 00:24:09]} {[%emt 00:00:59]} 24. Rfc1 {[%clk 00:30:49]} {[%emt
00:03:20]} Qd7 {[%clk 00:20:57]} {[%emt 00:03:42]} 25. Rb2 {[%clk 00:28:37]}
{[%emt 00:02:42]} Kg7 {[%clk 00:18:28]} {[%emt 00:02:58]} 26. Qa2 {[%clk
00:27:03]} {[%emt 00:02:04]} Rfc8 {[%clk 00:16:22]} {[%emt 00:02:35]} 27. Rcb1
{[%clk 00:26:10]} {[%emt 00:01:23]} f5 {[%clk 00:14:47]} {[%emt 00:02:05]} 28.
Rd2 {[%clk 00:20:39]} {[%emt 00:06:02]} fxe4 {[%clk 00:14:01]} {[%emt
00:01:15]} 29. Nxe4 {[%clk 00:18:55]} {[%emt 00:02:15]} Bxa4 {[%clk 00:13:14]}
{[%emt 00:01:18]} 30. Rxd4 {[%clk 00:15:38]} {[%emt 00:03:47]} exd4 {[%clk
00:13:25]} {[%emt 00:00:18]} 31. Qd5 {[%clk 00:15:50]} {[%emt 00:00:18]} Qe7
{[%clk 00:11:18]} {[%emt 00:02:37]} 32. Qxd4+ {[%clk 00:10:14]} {[%emt
00:06:06]} Qe5 {[%clk 00:11:40]} {[%emt 00:00:08]} 33. Qa7+ {[%clk 00:09:24]}
{[%emt 00:01:20]} Kh8 {[%clk 00:11:28]} {[%emt 00:00:42]} 34. f4 {[%clk
00:08:28]} {[%emt 00:01:26]} Qg7 {[%clk 00:11:09]} {[%emt 00:00:50]} 35. Qxa6
{[%clk 00:08:25]} {[%emt 00:00:33]} Bc6 {[%clk 00:09:30]} {[%emt 00:02:08]} 36.
Rd1 {[%clk 00:03:32]} {[%emt 00:05:23]} Ra8 {[%clk 00:09:20]} {[%emt 00:00:41]}
37. Qe2 {[%clk 00:02:39]} {[%emt 00:01:23]} Ra1 {[%clk 00:07:25]} {[%emt
00:02:25]} 38. Nxd6 {[%clk 00:01:27]} {[%emt 00:01:42]} Qd4 {[%clk 00:05:42]}
{[%emt 00:02:14]} 39. Nf7+ {[%clk 00:01:05]} {[%emt 00:00:52]} Kg7 {[%clk
00:05:52]} {[%emt 00:00:18]} 0-1

[Event "Tournoi fermé pour norme de MI de Créon 2025"]
[Site "CREON, France"]
[Date "2025.09.01"]
[Round "7.4"]
[White "Pichon, Ewen"]
[Black "Le Hetet, Nicolas"]
[Result "1-0"]
[TimeControl "1h30/40 - 30' + [30'']"]
[WhiteElo "2311"]
[BlackElo "2288"]

1. d4 {[%clk 01:30:59]} {[%emt 00:27:12]} d5 {[%clk 01:20:03]} {[%emt
00:10:58]} 2. c4 {[%clk 01:31:21]} {[%emt 00:00:08]} c6 {[%clk 01:20:25]}
{[%emt 00:00:07]} 3. Nf3 {[%clk 01:31:47]} {[%emt 00:00:04]} Nf6 {[%clk
01:20:49]} {[%emt 00:00:07]} 4. e3 {[%clk 01:32:05]} {[%emt 00:00:12]} Bf5
{[%clk 01:20:40]} {[%emt 00:00:38]} 5. Nc3 {[%clk 01:32:29]} {[%emt 00:00:07]}
e6 {[%clk 01:20:57]} {[%emt 00:00:13]} 6. Nh4 {[%clk 01:32:51]} {[%emt
00:00:08]} Bg6 {[%clk 01:21:17]} {[%emt 00:00:09]} 7. Bd2 {[%clk 01:33:14]}
{[%emt 00:00:08]} Nbd7 {[%clk 01:18:19]} {[%emt 00:03:28]} 8. Nxg6 {[%clk
01:33:19]} {[%emt 00:00:25]} hxg6 {[%clk 01:18:45]} {[%emt 00:00:05]} 9. Qb3
{[%clk 01:33:47]} {[%emt 00:00:02]} Qc7 {[%clk 01:18:20]} {[%emt 00:00:55]} 10.
h3 {[%clk 01:34:12]} {[%emt 00:00:05]} Bd6 {[%clk 01:10:28]} {[%emt 00:08:21]}
11. Rc1 {[%clk 01:34:38]} {[%emt 00:00:04]} a6 {[%clk 01:10:51]} {[%emt
00:00:07]} 12. Bd3 {[%clk 01:34:29]} {[%emt 00:00:39]} g5 {[%clk 01:06:43]}
{[%emt 00:04:38]} 13. cxd5 {[%clk 01:23:44]} {[%emt 00:11:15]} exd5 {[%clk
01:05:54]} {[%emt 00:01:19]} 14. Kd1 {[%clk 01:23:51]} {[%emt 00:00:23]} b5
{[%clk 00:59:25]} {[%emt 00:06:59]} 15. e4 {[%clk 01:22:02]} {[%emt 00:02:20]}
dxe4 {[%clk 00:54:19]} {[%emt 00:05:36]} 16. Nxe4 {[%clk 01:22:27]} {[%emt
00:00:05]} Bf4 {[%clk 00:53:52]} {[%emt 00:00:56]} 17. Nxf6+ {[%clk 01:18:30]}
{[%emt 00:04:27]} gxf6 {[%clk 00:53:41]} {[%emt 00:00:41]} 18. Re1+ {[%clk
01:18:54]} {[%emt 00:00:06]} Kf8 {[%clk 00:54:06]} {[%emt 00:00:04]} 19. Bb4+
{[%clk 01:17:48]} {[%emt 00:01:37]} c5 {[%clk 00:48:08]} {[%emt 00:06:28]} 20.
Bxc5+ {[%clk 01:14:35]} {[%emt 00:03:43]} Nxc5 {[%clk 00:48:17]} {[%emt
00:00:21]} 21. Rxc5 {[%clk 01:14:52]} {[%emt 00:00:13]} Qd7 {[%clk 00:43:32]}
{[%emt 00:05:16]} 22. g3 {[%clk 01:08:09]} {[%emt 00:07:12]} Rxh3 {[%clk
00:32:45]} {[%emt 00:11:17]} 23. gxf4 {[%clk 01:06:48]} {[%emt 00:01:51]} Qxd4
{[%clk 00:32:47]} {[%emt 00:00:28]} 24. Rd5 {[%clk 01:07:14]} {[%emt 00:00:04]}
Qxf2 {[%clk 00:30:12]} {[%emt 00:03:04]} 25. Rd7 {[%clk 01:07:17]} {[%emt
00:00:27]} Qf3+ {[%clk 00:30:35]} {[%emt 00:00:06]} 26. Be2 {[%clk 01:01:05]}
{[%emt 00:06:43]} Qxb3+ {[%clk 00:29:25]} {[%emt 00:01:40]} 27. axb3 {[%clk
01:01:31]} {[%emt 00:00:04]} Re8 {[%clk 00:24:19]} {[%emt 00:05:35]} 28. Rf1
{[%clk 00:53:06]} {[%emt 00:08:54]} gxf4 {[%clk 00:17:38]} {[%emt 00:07:11]} 29.
Rxf4 {[%clk 00:43:24]} {[%emt 00:10:12]} Rxb3 {[%clk 00:17:15]} {[%emt
00:00:53]} 30. Rxf6 {[%clk 00:43:10]} {[%emt 00:00:44]} Re7 {[%clk 00:17:38]}
{[%emt 00:00:07]} 31. Rd2 {[%clk 00:43:35]} {[%emt 00:00:05]} Re6 {[%clk
00:16:19]} {[%emt 00:01:48]} 32. Rxe6 {[%clk 00:41:36]} {[%emt 00:02:31]} fxe6
{[%clk 00:16:47]} {[%emt 00:00:02]} 33. Bg4 {[%clk 00:40:40]} {[%emt 00:01:26]}
Ke7 {[%clk 00:15:57]} {[%emt 00:01:20]} 34. Re2 {[%clk 00:41:08]} {[%emt
00:00:02]} Rd3+ {[%clk 00:16:19]} {[%emt 00:00:08]} 35. Kc2 {[%clk 00:41:30]}
{[%emt 00:00:08]} Rd6 {[%clk 00:16:44]} {[%emt 00:00:04]} 36. Rh2 {[%clk
00:39:33]} {[%emt 00:02:28]} Rd4 {[%clk 00:14:08]} {[%emt 00:03:06]} 37. Be2
{[%clk 00:39:12]} {[%emt 00:00:51]} Re4 {[%clk 00:10:45]} {[%emt 00:03:52]} 38.
Bd3 {[%clk 00:39:27]} {[%emt 00:00:15]} Rd4 {[%clk 00:05:21]} {[%emt 00:05:53]}
39. Rh7+ {[%clk 00:39:30]} {[%emt 00:00:28]} Kf6 {[%clk 00:05:45]} {[%emt
00:00:05]} 40. Ra7 {[%clk 00:39:54]} {[%emt 00:00:07]} Rd6 {[%clk 00:06:10]}
{[%emt 00:00:05]} 41. Be4 {[%clk 00:40:06]} {[%emt 00:00:18]} Ke5 {[%clk
00:06:25]} {[%emt 00:00:15]} 42. Bg2 {[%clk 00:40:13]} {[%emt 00:00:23]} Kd4
{[%clk 00:05:24]} {[%emt 00:01:31]} 43. Ra8 {[%clk 00:39:59]} {[%emt 00:00:45]}
Rb6 {[%clk 00:02:08]} {[%emt 00:03:45]} 44. Kb3 {[%clk 00:40:14]} {[%emt
00:00:15]} e5 {[%clk 00:02:25]} {[%emt 00:00:13]} 45. Kb4 {[%clk 00:40:31]}
{[%emt 00:00:13]} e4 {[%clk 00:01:56]} {[%emt 00:00:59]} 46. Rd8 {[%clk
00:39:57]} {[%emt 00:01:04]} Ke3 {[%clk 00:28:16]} {[%emt 00:04:11]} 47. Re8
{[%clk 01:10:04]} {[%emt 00:00:23]} 1-0